[Event "ICN Year End Invitational 2024"]
[Site "New York"]
[Date "2024.06.17"]
[Round "4.1"]
[White "Zhu, Linxi"]
[Black "Mullodzhanov, Nathaniel"]
[Result "1/2-1/2"]
[ECO "B11"]
[WhiteElo "2133"]
[BlackElo "1927"]
[Annotator "RC"]
[PlyCount "98"]
[EventDate "2024.06.16"]
[EventType "swiss"]
[EventCountry "USA"]
[SourceTitle "playchess.com"]
[Source "ChessBase"]
[SourceQuality "1"]
[TimeMode "Bronstein"]
[TimeControl "2700+5"]

1. e4 {[%emt 0:00:15]} c6 {[%emt 0:00:05]} 2. Nf3 {[%emt 0:00:05]} d5 {[%emt 0:00:05]} 3. Nc3 {[%emt 0:00:05]} Bg4 {[%emt 0:00:05]} 4. h3 {[%emt 0:00:05]} Bxf3 {[%emt 0:00:05]} 5. Qxf3 {[%emt 0:00:05]} e6 {[%emt 0:00:05]} 6. Be2 {[%emt 0:00:05]} Bc5 {[%emt 0:00:05]} 7. Qg3 {[%emt 0:00:50]} Qf6 {[%emt 0:01:54]} 8. d3 {[%emt 0:01:16]} Nd7 {[%emt 0:00:37]} 9. O-O {[%emt 0:01:22]} Ne7 {[%emt 0:01:11]} 10. Na4 {[%emt 0:04:35]} Bd4 {[%emt 0:01:27]} 11. c3 {[%emt 0:03:38]} Be5 {[%emt 0:00:09]} 12. f4 {[%emt 0:00:10]} Bc7 {[%emt 0:00:12]} 13. Be3 {[%emt 0:00:56]} Qg6 {[%emt 0:05:37]} 14. Qf3 {[%emt 0:01:50]} O-O {[%emt 0:01:50]} 15. Nc5 {[%emt 0:01:03]} Nxc5 {[%emt 0:00:07]} 16. Bxc5 {[%emt 0:00:05]} Bb6 {[%emt 0:00:07]} 17. Bxb6 {[%emt 0:00:19]} axb6 {[%emt 0:00:05]} 18. e5 {[%emt 0:00:20]} d4 {[%emt 0:00:49]} 19. Kh2 {[%emt 0:02:34]} Rfd8 {[%emt 0:03:07]} 20. g4 {[%emt 0:01:23]} f5 {[%emt 0:00:40]} 21. c4 {[%emt 0:01:15]} Qf7 {[%emt 0:04:01]} 22. g5 {[%emt 0:01:16]} g6 {[%emt 0:00:33]} 23. Bd1 {[%emt 0:01:42]} Nc8 {[%emt 0:02:56]} 24. b4 {[%emt 0:00:53]} Qe7 {[%emt 0:00:19]} 25. a3 {[%emt 0:00:08]} Na7 {[%emt 0:01:27]} 26. Bb3 {[%emt 0:00:21]} b5 {[%emt 0:04:58]} 27. c5 {[%emt 0:00:15]} Qd7 {[%emt 0:00:21]} 28. h4 {[%emt 0:00:54]} Nc8 {[%emt 0:00:45]} 29. h5 {[%emt 0:00:48]} Kg7 {[%emt 0:00:05]} 30. Kg2 {[%emt 0:00:10]} Ne7 {[%emt 0:00:10]} 31. Rh1 {[%emt 0:00:16]} Rh8 {[%emt 0:00:07]} 32. hxg6 {[%emt 0:02:34]} hxg6 {[%emt 0:00:07]} 33. Rxh8 {[%emt 0:00:07]} Rxh8 {[%emt 0:00:05]} 34. Rh1 {[%emt 0:00:05]} Rxh1 {[%emt 0:00:10]} 35. Kxh1 {[%emt 0:00:05]} Nd5 {[%emt 0:00:30]} 36. Bxd5 {[%emt 0:00:18]} Qxd5 {[%emt 0:00:05]} 37. Qxd5 {[%emt 0:00:05]} exd5 {[%emt 0:00:05]} 38. Kg2 {[%emt 0:00:05]} Kf7 {[%emt 0:00:05]} 39. Kf3 {[%emt 0:00:05]} Ke6 {[%emt 0:00:05]} 40. Ke2 {[%emt 0:00:05]} Ke7 {[%emt 0:00:05]} 41. Kd2 {[%emt 0:00:05]} Ke6 {[%emt 0:00:08]} 42. Kc2 {[%emt 0:00:07]} Ke7 {[%emt 0:00:05]} 43. Kb3 {[%emt 0:00:05]} Ke6 {[%emt 0:00:05]} 44. a4 {[%emt 0:00:11]} Ke7 {[%emt 0:00:05]} 45. axb5 {[%emt 0:00:08]} cxb5 {[%emt 0:00:05]} 46. Kc2 {[%emt 0:00:06]} Ke6 {[%emt 0:00:05]} 47. Kd2 {[%emt 0:00:05]} Ke7 {[%emt 0:00:05]} 48. Ke2 {[%emt 0:00:07]} Ke6 {[%emt 0:00:05]} 49. Kf3 {[%emt 0:00:05]} Ke7 {[%emt 0:00:05]} 1/2-1/2

[Event "ICN Year End Invitational 2024"]
[Site "New York"]
[Date "2024.06.17"]
[Round "4.2"]
[White "Chakravarty, Aritro"]
[Black "Goodrich, Elliott"]
[Result "1-0"]
[ECO "D00"]
[WhiteElo "2015"]
[BlackElo "1952"]
[Annotator "RC"]
[PlyCount "61"]
[EventDate "2024.06.16"]
[EventType "swiss"]
[EventCountry "USA"]
[SourceTitle "playchess.com"]
[Source "ChessBase"]
[SourceQuality "1"]
[TimeMode "Bronstein"]
[TimeControl "2700+5"]

1. d4 {[%emt 0:00:05]} Nf6 {[%emt 0:00:28]} 2. Bg5 {[%emt 0:45:05]} d5 {[%emt 0:00:09]} 3. Bxf6 {[%emt 0:00:00]} gxf6 {[%emt 0:00:12]} 4. e3 {[%emt 0:00:00]} Bf5 {[%emt 0:00:33]} 5. c4 {[%emt 0:00:00]} c6 {[%emt 0:00:29]} 6. Nc3 {[%emt 0:00:00]} e6 {[%emt 0:00:42]} 7. Rc1 {[%emt 0:00:00]} a6 {[%emt 0:00:36]} 8. Nf3 {[%emt 0:00:00]} Nd7 {[%emt 0:01:26]} 9. a3 {[%emt 0:00:00]} Bd6 {[%emt 0:00:44]} 10. Be2 {[%emt 0:00:00]} Rg8 {[%emt 0:00:46]} 11. Nh4 {[%emt 0:00:00]} Bg6 {[%emt 0:00:20]} 12. g3 {[%emt 0:00:00]} Qe7 {[%emt 0:01:56]} 13. cxd5 {[%emt 0:00:00]} exd5 {[%emt 0:00:18]} 14. O-O {[%emt 0:00:00]} f5 {[%emt 0:02:00]} 15. Bd3 {[%emt 0:00:00]} Qg5 {[%emt 0:01:37]} 16. f4 {[%emt 0:00:00]} Qe7 {[%emt 0:01:30]} 17. Nxf5 {[%emt 0:00:00]} Bxf5 18. Bxf5 {[%emt 0:00:00]} Nf6 {[%emt 0:01:55]} 19. Qd3 {[%emt 0:00:00]} h5 {[%emt 0:00:16]} 20. e4 {[%emt 0:00:00]} dxe4 21. Nxe4 {[%emt 0:00:00]} h4 {[%emt 0:01:00]} 22. Rfe1 {[%emt 0:00:00]} Kf8 {[%emt 0:00:27]} 23. Ng5 {[%emt 0:00:00]} Qc7 {[%emt 0:00:19]} 24. Qb3 {[%emt 0:00:00]} Nd5 {[%emt 0:01:57]} 25. Qf3 {[%emt 0:00:00]} Rg7 {[%emt 0:01:40]} 26. Qh5 {[%emt 0:00:00]} Kg8 {[%emt 0:00:30]} 27. Bh7+ {[%emt 0:00:00]} Kf8 {[%emt 0:00:07]} 28. Be4 {[%emt 0:00:00]} Nxf4 {[%emt 0:05:07]} 29. Qh8+ {[%emt 0:00:00]} Rg8 {[%emt 0:00:05]} 30. Nh7+ {[%emt 0:00:00]} Ke7 {[%emt 0:00:21]} 31. Bxc6+ {[%emt 0:00:00]} 1-0